[Event "71st Greek Championship 2022"]
[Site "Athens"]
[Date "2022.12.07"]
[Round "5.3"]
[White "Alexakis, Dimitris"]
[Black "Naoum, Spyridon"]
[Result "0-1"]
[ECO "B42"]
[WhiteElo "2486"]
[BlackElo "2352"]
[Annotator "TA"]
[PlyCount "122"]
[EventDate "2022.12.04"]
[EventType "tourn"]
[EventCountry "GRE"]
[SourceTitle "playchess.com"]
[Source "ChessBase"]
[SourceQuality "1"]
[TimeControl "40/5400+30:1800+30"]

{[%evp 12,122,31,24,40,42,25,25,42,44,42,7,0,0,0,0,0,0,20,0,76,83,79,80,75,81,77,83,75,64,82,4,63,4,127,21,75,13,33,0,0,16,0,0,0,-124,75,34,60,-53,104,110,204,168,178,166,202,98,117,17,110,99,156,0,246,50,50,64,72,60,72,73,72,32,31,44,41,0,0,0,0,0,0,0,0,-686,-77,-77,-78,-29975,-29976,-29981,-29982,-29982,-29983,-29983,-29984,-29984,0,0,0,-29984,-29985,-29985,-2121,-1686,-1676,-1627,-1589,-1575,-1231,-981,-901]} 1. e4 {[%emt 0:24:32]} c5 {[%emt 0:01:53]} 2. Nf3 {[%emt 0:00:52]} e6 {[%emt 0:00:08]} 3. d4 {[%emt 0:00:08]} cxd4 {[%emt 0:00:05]} 4. Nxd4 {[%emt 0:00:03]} a6 {[%emt 0:00:05]} 5. Bd3 {[%emt 0:00:03]} Bc5 {[%emt 0:02:01]} 6. Nb3 {[%emt 0:00:07]} Ba7 {[%emt 0:00:05]} 7. Qe2 {[%emt 0:05:42] 7.Qe2 scores better than 7.0-0.} Ne7 {[%emt 0:00:14] B42: Sicilian: Kan Variation: 5 Bd3.} 8. Nc3 {[%emt 0:00:45]} O-O {[%emt 0:00:24]} 9. Be3 {[%emt 0:03:12]} Nbc6 {[%emt 0:00:11] White has an edge.} 10. O-O-O {[%emt 0:00:59]} (10. Bxa7 {simplifies} Rxa7 11. O-O e5 12. Qd2) 10... b5 {[%emt 0:06:15]} 11. Kb1 {[%emt 0:05:38]} b4 {[%emt 0:08:31]} 12. Na4 {[%emt 0:00:42] [#]} d6 $146 {[%emt 0:06:04]} ({Predecessor:} 12... d5 13. exd5 Nxd5 14. Be4 Bxe3 15. fxe3 Qe7 16. Bxd5 exd5 17. Nb6 Rb8 18. Nxd5 Qe5 {1-0 (34) Sjugirov,S (2696)-Dubov,D (2711) Chess.com INT 2022}) 13. Bxa7 {[%emt 0:07:00]} Rxa7 {[%emt 0:00:00]} 14. Qe3 {[%emt 0:20:51]} a5 {[%emt 0:17:37]} 15. Bb5 {[%emt 0:00:00]} Ba6 {[%emt 0:19:12]} (15... Rb7 $11 16. c4 Qc7) 16. Bxa6 $1 $16 {[%emt 0:03:43]} Rxa6 {[%emt 0:00:01]} 17. Qd3 {[%emt 0:00:12][%csl LRa6,LRd6]} Nb8 {[%emt 0:00:22] [#] aiming for ...Qe8.} 18. Nbc5 $1 {[%emt 0:02:59][%cal Bb3c5,Bc5b7,Bb7d6][%mdl 32]} Rc6 {[%emt 0:00:10] White must now prevent ...Qe8.} 19. Nb7 {[%emt 0:01:08][%csl LRd6,LRd8]} Qc7 {[%emt 0:08:18]} 20. Nxd6 {[%emt 0:01:35]} Ng6 {[%emt 0:00:34]} 21. Qd4 {[%emt 0:17:58]} (21. Nb5 $16 Qb7 22. b3) 21... Na6 {[%emt 0:07:30]} (21... Rxc2 $11 22. Rc1 Rc6 23. Rxc6 Nxc6) 22. e5 {[%emt 0:01:09]} (22. Nb5 $14 Qb8 23. c4) 22... Rb8 {[%emt 0:00:53]} (22... Nc5 $11 {remains equal.} 23. Nxc5 Rxc5) 23. f4 {[%emt 0:00:38]} (23. h4 $1 $16 {[%cal Rh4h5]}) 23... h6 {[%emt 0:00:57]} (23... Nc5 $1 $11 {keeps the balance.} 24. Nxc5 Rxc5) 24. g3 {[%emt 0:01:20]} (24. Qe4 $16) 24... Ne7 {[%emt 0:01:39]} (24... Rxc2 25. Rc1 Rc6 26. Qd3 $16) 25. Qe4 {[%emt 0:00:17]} (25. Ne4 {simplifies} Rxc2 26. Qd6 Rc6 27. Qxc7 Nxc7 28. Rd7) 25... Nc5 $1 {[%emt 0:02:07] Inhibits g4.} 26. Nxc5 {[%emt 0:00:05]} Rxc5 {[%emt 0:00:01]} 27. Rd2 {[%emt 0:01:46]} a4 {[%emt 0:00:21]} 28. Rhd1 {[%emt 0:00:24]} (28. Rc1 $11) 28... b3 $2 {[%emt 0:06:34]} (28... Nd5 $17 {[%cal Od5c3] Hoping for ...Nc3+!} 29. Rd4 a3) 29. cxb3 {[%emt 0:00:22]} (29. Qxa4 Rxc2 30. axb3 Rxd2 31. Rxd2 Nd5 $11) (29. a3 {feels hotter.} bxc2+ 30. Rxc2 Nd5 31. Nc4) 29... axb3 {[%emt 0:00:07]} 30. axb3 {[%emt 0:00:28]} (30. a3 $1 $14) 30... g6 $2 {[%emt 0:01:14]} (30... Nd5 $15 {stays ahead.} 31. Rd3 Nb4) 31. b4 {[%emt 0:00:35]} Rc6 {[%emt 0:00:45]} (31... Nd5 $16) 32. b5 {[%emt 0:00:28]} Rc5 {[%emt 0:00:42]} 33. Rc2 {[%emt 0:00:10]} Nd5 {[%emt 0:00:30]} 34. Rdc1 {[%emt 0:00:31]} (34. Rxc5 $18 Qxc5 35. Qd4) 34... Rxc2 {[%emt 0:00:24]} 35. Rxc2 {[%emt 0:00:52]} (35. Qxc2 $16 Qa5 36. Qd3) 35... Qa5 {[%emt 0:00:00]} (35... Qa7 $11) 36. Rc4 {[%emt 0:00:40]} Ra8 {[%emt 0:01:31]} ({Better is} 36... Qd2) 37. f5 $2 {[%emt 0:00:15]} (37. Kc2 $16) 37... Qd2 $2 {[%emt 0:02:22]} (37... gxf5 $11 {and Black is okay.} 38. Nxf5 h5) 38. Qd4 $2 {[%emt 0:00:47]} (38. fxg6 $2 Qd1+ 39. Rc1 Nc3+ $1 {[%mdl 512]} 40. bxc3 Qb3#) (38. Qc2 $1 $18 {[%cal Rc2d2]} Qe1+ 39. Qc1 Qxe5 40. Rc8+ Rxc8 41. Qxc8+ Kh7 42. fxg6+ (42. Nxf7 $2 Qxf5+ 43. Kc1 Qxf7 $19) 42... fxg6 43. Qd7+ Qg7 44. Qxg7+ Kxg7 45. Nc4) 38... Qe1+ $14 {[%emt 0:07:36]} (38... Qxh2 $2 39. fxe6 fxe6 40. b6 Nxb6 41. Qxb6 $18) 39. Rc1 {[%emt 0:00:03]} Qa5 {[%emt 0:00:01]} 40. fxe6 {[%emt 0:00:00]} Qa2+ $1 {[%emt 0:00:00]} 41. Kc2 {[%emt 0:01:42]} fxe6 {[%emt 0:07:30]} 42. b6 {[%emt 0:22:27]} Ra4 $1 {[%emt 0:06:38] Prevents b7.} 43. Qc5 {[%emt 0:01:02]} Nb4+ {[%emt 0:07:20]} (43... Rb4 $2 44. Qc8+ Kh7 45. Qb7+ (45. Qxe6 Qb3+ 46. Kd2 Qe3+ 47. Kd1 Rd4+ 48. Kc2 Qd3#) 45... Kg8 46. Qb8+ Kh7 47. Qa7+ Qxa7 48. bxa7 $18) 44. Kd1 {[%emt 0:01:21]} Qb3+ {[%emt 0:00:22]} 45. Ke2 {[%emt 0:01:27]} Qxb2+ {[%emt 0:10:48]} 46. Kf1 {[%emt 0:00:12] Intending Qc8+ and mate.} Ra8 {[%emt 0:00:01] Against Qc8+} 47. Kg1 {[%emt 0:06:16] b7 is the strong threat.} Nd3 {[%emt 0:00:45][%csl LRc1,LRc5,LRe5]} 48. b7 $2 {[%emt 0:00:04][%mdl 8192]} (48. Qc8+ $11 Rxc8 49. Rxc8+ Kh7 50. Rc7+ Kh8 51. Rc8+ Kh7 52. Rc7+ Kh8 53. Rc8+ Kh7) 48... Rf8 $2 {[%emt 0:00:24]} (48... Qxc1+ 49. Qxc1 Rf8 50. Qc8 Ne1 51. b8=Q Nf3+ 52. Kf2 Rxc8 53. Qxc8+ Kg7 54. Qd7+ Kg8 55. Qf7+ Kh8 56. Ne8 Nxe5 57. Qg7#) (48... Rd8 $1 $19 {has better winning chances.} 49. Qc7 Qxc1+ 50. Qxc1 Nxc1) 49. Qc2 $17 {[%emt 0:00:42] White threatens Qxb2 and mate.} Qd4+ {[%emt 0:01:46]} (49... Qxc1+ $2 50. Qxc1 Nxc1 51. Nc8 Ne2+ 52. Kg2 $18) 50. Kg2 $2 {[%emt 0:00:40][%mdl 8192]} (50. Kh1 $17 Nf2+ 51. Kg2 (51. Kg1 Nd1+ 52. Kg2 Ne3+ 53. Kh1 Nxc2 54. b8=Q Rxb8 55. Rxc2 Qd1+ 56. Kg2 Qxc2+ 57. Kf3 Qd1+ 58. Kf2 Rb3 59. Kg2 Rb2+ 60. Kh3 Qh5#) 51... Qd5+ 52. Kf1 Nd1+ 53. Nf5 (53. Kg1 Qd4+ 54. Kg2 Ne3+ 55. Kh1 Nxc2 56. b8=Q Rxb8 57. Rxc2 Qd1+ 58. Kg2 Qxc2+ 59. Kf3 Qd1+ 60. Kf2 Rb3 61. Kg2 Rb2+ 62. Kh3 Qh5#) 53... Ne3+ 54. Kg1 gxf5 55. Qe2) 50... Rf2+ $1 {[%emt 0:01:48]} 51. Qxf2 {[%emt 0:00:02]} Qxf2+ {[%emt 0:00:02]} 52. Kh1 {[%emt 0:00:35]} Qf3+ {[%emt 0:00:18]} (52... Nxc1 53. b8=Q+ (53. b8=B $2 Qf1#) 53... Qf8 54. Qxf8+ Kxf8 55. Kg2 $11) 53. Kg1 {[%emt 0:00:01]} Qe3+ $1 {[%emt 0:00:19]} (53... Nxc1 $2 54. b8=Q+ (54. b8=B $2 Ne2#) 54... Qf8 55. Qb1 Ne2+ 56. Kg2 $18) 54. Kg2 {[%emt 0:00:00] [#]} Qe2+ $2 {[%emt 0:00:53]} (54... Nxc1 55. b8=Q+ (55. b8=B Qe2+ 56. Kh3 Nd3 57. Ne8 Nf2+ 58. Kg2 Ne4+ 59. Kh3 Ng5+ 60. Kh4 Qh5#) 55... Kh7 56. Qc7+ Kh8 57. Qd8+ Kh7 58. Qe7+ Kh8 59. Qf6+ (59. Qxe6 Qe2+ 60. Kg1 Qe1+ 61. Kg2 Qe2+ 62. Kh3 Qh5+ 63. Kg2 Qe2+ $11) 59... Kh7 60. Qf7+ (60. Qxe6 Qe2+ 61. Kh3 Qh5+ 62. Kg2 Qe2+ 63. Kh3 Qh5+ 64. Kg2 Qe2+ $11) 60... Kh8 61. Qxg6) (54... Qd2+ $1 {mates} 55. Kf3 Nxe5+ 56. Ke4 Qd5+ 57. Ke3 Qd3+ 58. Kf2 Qd2+ 59. Kg1 Qxc1+ 60. Kf2 Qd2+ 61. Kf1 Qd1+ 62. Kf2 Ng4+ 63. Kg2 Qe2+ 64. Kh3 Nf2+ 65. Kg2 Ne4+ 66. Kh3 Ng5+ 67. Kh4 Qh5#) 55. Kg1 $1 $11 {[%emt 0:00:22]} Qe3+ {[%emt 0:00:38]} (55... Nxc1 56. b8=Q+ (56. b8=B Qf3 57. h4 Ne2+ 58. Kh2 Qxg3+ 59. Kh1 Qh3#) 56... Kh7 57. Qc7+ Kg8 58. Qf7+ Kh8 59. Qxg6 Qf3 60. Nf7+) 56. Kg2 {[%emt 0:00:01] [#]} Qd2+ $1 {[%emt 0:00:21]} (56... Nxc1 57. b8=Q+ (57. b8=B Qe2+ 58. Kh3 Nd3) 57... Kh7 58. Qc7+ Kh8 59. Qd8+ Kh7 60. Qe7+ Kh8 61. Qf6+ (61. Qxe6 Qe2+ 62. Kg1 Qe3+ 63. Kg2 Qe2+ 64. Kh3 Qh5+ 65. Kg2 Qe2+ $11) 61... Kh7 62. Qf7+ (62. Qxe6 Qe2+ 63. Kh3 Qh5+ 64. Kg2 Qe2+ 65. Kh3 Qh5+ 66. Kg2 Qe2+ $11) 62... Kh8 63. Qxg6) 57. Kf3 {[%emt 0:02:01]} Qf2+ {[%emt 0:01:04]} (57... Nxc1 $2 58. b8=Q+ (58. b8=B $2 Qe2+ 59. Kf4 g5#) 58... Kh7 59. Qc7+ Kh8 60. Qd8+ Kh7 61. Qe7+ Kh8 62. Qd8+ (62. Qxe6 $2 Qe2+ 63. Kf4 Nd3#) 62... Kh7 63. Qe7+ Kg8 64. Qe8+ (64. Qxe6+ Kh7 $16) 64... Kg7 65. Qf7+ (65. Qxe6 $2 Qe2+ 66. Kf4 Nd3#) 65... Kh8 66. Qf8+ (66. Qxg6 $2 Qe2+ 67. Kf4 Nd3+ $19) 66... Kh7 67. Qf7+ (67. Ne4 $2 Qe2+ 68. Kf4 Nd3#) 67... Kh8 68. Qf8+ (68. Qxg6 $2 Qe2+ 69. Kf4 Nd3+ $19) 68... Kh7 69. Qe7+ $18 (69. Ne4 $2 Qe2+ 70. Kf4 Nd3#)) (57... Nxe5+ $142 58. Ke4 Qd5+ 59. Ke3 Qd3+ 60. Kf2 Qd2+ 61. Kg1 Qxc1+ 62. Kg2 Qd2+ 63. Kh3 Qxd6 64. Kg2 Ng4 65. Kg1 Qd1+ 66. Kg2 Qe2+ 67. Kh3 Nf2+ 68. Kg2 Ne4+ 69. Kh3 Ng5+ 70. Kh4 Qh5#) 58. Ke4 $19 {[%emt 0:01:01] Black is clearly winning.} Qe2+ {[%emt 0:00:01]} (58... Nxc1 59. b8=Q+ (59. b8=B Qd2 60. Nc4 Qd3+ 61. Kf4 Ne2+ 62. Kg4 Qf5+ 63. Kh4 Qh5#) 59... Qf8 60. Qb7 $16) 59. Kd4 {[%emt 0:00:17]} Qxe5+ {[%emt 0:00:05]} (59... Nxc1 $2 60. b8=Q+ (60. b8=B $2 {is the wrong capture.} Qb2+ 61. Kc5 Nd3+ 62. Kc6 Qxb8 $19) 60... Kh7 61. Qc7+ Kg8 62. Qf7+ Kh8 63. Qe8+ (63. Qxe6 Qd2+ 64. Ke4 Qd3+ 65. Kf4 Qd2+ 66. Kg4 Qe2+ 67. Kh3 Qh5+ 68. Kg2 Qe2+ 69. Kg1 Qe3+ 70. Kg2 Qe2+ 71. Kh3 Qh5+ 72. Kg2 Qe2+ $11) (63. Qxg6 Nb3+ 64. Kc3 Qxe5+ 65. Kxb3 Qxd6 $16) 63... Kh7 64. Qe7+ (64. Qxe6 Qd2+ 65. Ke4 Qd3+ 66. Kf4 g5+ 67. Kg4 Qe2+ 68. Kh3 Qf1+ 69. Kg4 Qe2+ 70. Kh3 Qf1+ 71. Kg4 Qe2+ $11) 64... Kg8 65. Qf7+ Kh8 66. Qe8+ (66. Qxe6 Qd2+ 67. Ke4 Qd3+ 68. Kf4 Qd2+ 69. Kg4 Qe2+ 70. Kh3 Qh5+ 71. Kg2 Qe2+ 72. Kg1 Qe3+ 73. Kg2 Qe2+ 74. Kh3 Qh5+ 75. Kg2 Qe2+ $11) (66. Qxg6 Nb3+ 67. Kc3 Qxe5+ 68. Kxb3 Qxd6 $16) 66... Kg7 67. Qf7+ (67. Qxe6 Qd2+ 68. Ke4 Qg2+ 69. Kd4 Qd2+ 70. Ke4 Qg2+ 71. Kd4 Qd2+ $11) 67... Kh8 $18) 60. Kxd3 {[%emt 0:00:43]} Qxd6+ {[%emt 0:00:02]} 61. Ke2 {[%emt 0:00:31]} Qa6+ {[%emt 0:00:02] What a bad dream for White.   Weighted Error Value: White=0.47/Black=0.55} 0-1

[Event "71st Greek Championship 2022"]
[Site "Athens"]
[Date "2022.12.07"]
[Round "5.4"]
[White "Koutlas, Nikolaos"]
[Black "Moutousis, Konstantinos"]
[Result "1-0"]
[ECO "B12"]
[WhiteElo "2267"]
[BlackElo "2392"]
[Annotator "TA"]
[PlyCount "171"]
[EventDate "2022.12.04"]
[EventType "tourn"]
[EventCountry "GRE"]
[SourceTitle "playchess.com"]
[Source "ChessBase"]
[SourceQuality "1"]
[TimeControl "40/5400+30:1800+30"]

{[%evp 9,171,55,91,92,91,84,103,98,97,106,95,93,95,105,104,105,222,190,188,111,120,117,123,108,125,114,108,51,119,104,258,22,194,187,180,179,166,104,115,107,109,118,126,133,114,111,137,125,168,166,177,120,237,237,233,132,124,129,122,119,120,72,93,84,140,66,84,84,93,78,127,110,102,94,306,168,233,241,253,240,370,291,323,306,351,351,682,519,780,385,362,380,366,369,331,339,344,314,353,306,305,308,277,198,202,189,394,397,387,314,346,346,346,346,989,970,946,831,945,965,923,807,1025,838,1337,1252,1460,1160,1058,684,1537,1596,29960,29960,29963,29965,29965,29962,29969,29971,29968,29972,29972,5766,29973,29969,5070,2689,1340,8,8,8,8,8,8,8,8,8,8,8,8,8,29984,29984]} 1. e4 {[%emt 0:00:03]} c6 {[%emt 0:02:50]} 2. d4 {[%emt 0:00:11]} d5 {[%emt 0:00:21]} 3. e5 {[%emt 0:00:08]} c5 {[%emt 0:03:18]} 4. Nf3 {[%emt 0:00:32]} a6 {[%emt 0:04:05]} 5. dxc5 {[%emt 0:03:43]} Nc6 {[%emt 0:03:41] [#]} 6. Nc3 $146 {[%emt 0:11:28][%cal Bb1c3,Bc3a4,Ba4c5][%mdl 32] B12: Caro-Kann: Advance Variation.} ({Predecessor:} 6. h3 Bf5 7. c3 a5 8. Be3 e6 9. Bb5 Nge7 10. O-O Ng6 11. Nbd2 h5 12. Re1 {0-1 (41) Souleidis,G (2426)-Silvestre,C (1942) Chess.com INT 2022}) 6... e6 {[%emt 0:05:04]} 7. Na4 {[%emt 0:01:37]} Bxc5 {[%emt 0:03:52][%mdl 64] Decoy} 8. Nxc5 {[%emt 0:00:09] Threatens to win with c3. White is better.} Qa5+ {[%emt 0:00:03]} 9. c3 {[%emt 0:01:19]} Qxc5 {[%emt 0:00:06]} 10. Bd3 {[%emt 0:01:47]} Nge7 {[%emt 0:03:37]} 11. O-O {[%emt 0:00:46]} Ng6 {[%emt 0:01:10]} 12. Re1 {[%emt 0:01:07]} (12. Be3 Qe7 $14) 12... f6 {[%emt 0:04:26]} (12... Qe7 $16) 13. exf6 $1 $18 {[%emt 0:05:28]} gxf6 {[%emt 0:00:23]} 14. b4 {[%emt 0:09:14]} (14. Bh6 $18) 14... Qe7 $16 {[%emt 0:05:22]} 15. Be3 {[%emt 0:01:23]} e5 {[%emt 0:16:43]} 16. Bc5 {[%emt 0:11:59]} Qf7 {[%emt 0:04:29]} 17. b5 $1 {[%emt 0:03:03]} axb5 {[%emt 0:12:51]} 18. Bxb5 {[%emt 0:01:32] This pair of bishops is nice.} (18. Nd4 $16 Nce7 19. Nxb5 (19. Bxb5+ Kf8 $14)) 18... Bd7 {[%emt 0:01:49]} (18... Be6 $14) 19. c4 {[%emt 0:03:18]} dxc4 {[%emt 0:00:27]} (19... Nf4 $16) 20. Qc2 $2 {[%emt 0:04:49]} ({White has to play} 20. Nd2 $1 $18 {[%cal Rd2e4]} Be6 21. Ne4) 20... Na5 $2 {[%emt 0:05:02]} (20... Nf4 $11 {and Black stays safe.}) 21. Bxd7+ {[%emt 0:00:55]} Qxd7 {[%emt 0:01:05]} 22. Rad1 {[%emt 0:00:41] Prevents Qd5.} Qc8 {[%emt 0:01:01]} 23. Qa4+ {[%emt 0:08:04]} (23. Rd5 $18) 23... Qc6 {[%emt 0:00:47]} 24. Qb4 {[%emt 0:05:39]} b6 {[%emt 0:00:09]} 25. Bxb6 {[%emt 0:07:37] White has more active pieces. The black rooks are badly placed.} (25. Qxb6 $6 Qxb6 26. Bxb6 Nb7 $11) 25... Nb7 {[%emt 0:01:52] Inhibits Rd6.} 26. Nd4 {[%emt 0:00:30]} Qa4 {[%emt 0:00:37]} 27. Qd2 {[%emt 0:00:28]} Ra6 {[%emt 0:03:43]} 28. Rb1 {[%emt 0:01:21][%cal Od4b5]} Qd7 {[%emt 0:00:38] Inhibits Nb5.} 29. Qc2 {[%emt 0:02:55]} Nd6 {[%emt 0:05:06]} 30. Bc5 {[%emt 0:01:13]} O-O {[%emt 0:00:08] [#]} (30... Qc8 $16 {was worth a try.} 31. Bxd6 Rxd6) 31. Nb5 $1 $18 {[%emt 0:01:00][%mdl 512]} Nxb5 {[%emt 0:00:28]} 32. Qxc4+ {[%emt 0:00:46]} (32. Bxf8 $18 Qc6 33. Bh6) 32... Qf7 $16 {[%emt 0:02:34]} 33. Qxb5 {[%emt 0:00:30]} Rfa8 {[%emt 0:00:15]} 34. a3 {[%emt 0:02:38]} Nf4 {[%emt 0:01:03]} 35. Bb4 {[%emt 0:01:03]} (35. Red1 $142) 35... Kh8 {[%emt 0:00:48]} 36. Rbd1 {[%emt 0:02:01]} R6a7 {[%emt 0:01:31]} (36... Qg8 $142 37. g3 Ne6) 37. Re3 {[%emt 0:00:41]} ({Better is} 37. Rd6 $1 $16) 37... Qh5 {[%emt 0:00:55]} 38. Rde1 {[%emt 0:00:22]} (38. Qf1 Rc7 $14) 38... Qf7 {[%emt 0:02:26]} 39. Rg3 {[%emt 0:01:17]} Rd7 {[%emt 0:00:20]} (39... Qb7 $142 40. Qxb7 (40. Rxe5 Qxb5 41. Rxb5 Ne2+ 42. Kf1 Nxg3+ 43. fxg3 Rc8 $11) 40... Rxb7) 40. Qc6 $1 {[%emt 0:00:00]} (40. Rxe5 Rb7 41. Qc5 Rxb4 42. Qxb4 fxe5 $17) 40... Rad8 {[%emt 0:00:00]} 41. h3 {[%emt 0:08:13]} h5 $2 {[%emt 0:11:34] [#]} (41... Qe6 $16 42. Qxe6 Nxe6) 42. Kh2 {[%emt 0:03:05]} (42. Rxe5 $142 $3 {[%cal Og1h2][%mdl 512] aiming for Kh2!} Rc7 43. Qa6) 42... Rd5 {[%emt 0:01:26]} (42... Qe6 {was necessary.} 43. Qxe6 Nxe6) 43. Qa6 $18 {[%emt 0:04:23]} Kh7 {[%emt 0:02:07]} 44. Rc1 {[%emt 0:01:30]} Re8 {[%emt 0:03:52]} (44... Rd3 $142 45. Rc6 Rxg3 46. fxg3 Nd5) 45. Rc8 {[%emt 0:03:46]} Rdd8 {[%emt 0:05:48]} 46. Rc6 {[%emt 0:01:51]} Re6 {[%emt 0:01:02]} 47. Qc4 {[%emt 0:00:15] Hoping for Rc7.} Rd4 $2 {[%emt 0:01:43]} (47... f5 48. Rg5 Rd7) 48. Qc2+ {[%emt 0:00:58]} e4 {[%emt 0:01:02]} (48... Kh8 $142 49. Rc7 Rd7) 49. Rc7 {[%emt 0:04:47]} (49. Rc8 $142 Rd5 50. f3) 49... Rd7 {[%emt 0:00:28]} 50. Rxd7 {[%emt 0:00:10]} Qxd7 {[%emt 0:00:05]} 51. Qc5 {[%emt 0:00:47]} Re8 {[%emt 0:03:35] [#]} 52. Bd2 $1 {[%emt 0:03:19][%mdl 512]} Nd5 {[%emt 0:00:32]} 53. h4 {[%emt 0:00:32]} Ra8 {[%emt 0:02:20]} 54. Qc2 {[%emt 0:01:33]} Qe6 {[%emt 0:00:51]} 55. Bc1 {[%emt 0:00:55]} Rg8 {[%emt 0:00:33]} 56. Rb3 $40 {[%emt 0:02:23][%mdl 128] White attacks with force.} Qg4 {[%emt 0:03:06][%csl Gg8][%cal Rg4g2]} 57. g3 {[%emt 0:00:27] Black must now prevent Qd2.} Ne7 $2 {[%emt 0:01:05]} (57... Kg6 {keeps fighting.} 58. Qd2 Qf5) 58. Rb7 {[%emt 0:00:51]} Rg7 {[%emt 0:00:18]} 59. Qd2 {[%emt 0:00:29] And now Qh6+ would win.} Nf5 {[%emt 0:00:48] Inhibits Qh6+.} 60. Rxg7+ {[%emt 0:00:07]} Kxg7 {[%emt 0:00:12]} 61. Qf4 {[%emt 0:00:19]} Qxf4 $2 {[%emt 0:00:18]} (61... Qd1 62. Qxf5 (62. Qxe4 Nxh4 63. Bb2 Nf3+ 64. Kg2 Ne1+ 65. Kh3 Nf3 $18) 62... Qxc1 63. Qxh5 (63. Qxe4 Qxa3 64. Qf5 Qb2 $16) 63... Qd2 64. Qg4+ Kf7) 62. Bxf4 {[%emt 0:00:01][%mdl 4096] Endgame KB-KN} Kf7 {[%emt 0:00:14]} 63. Kg2 {[%emt 0:00:43]} Ke6 {[%emt 0:00:33]} 64. f3 {[%emt 0:00:22]} e3 {[%emt 0:00:34]} 65. Kf1 {[%emt 0:00:48]} Kd5 {[%emt 0:00:42]} 66. a4 {[%emt 0:02:31]} Kc4 {[%emt 0:00:36]} 67. Ke2 {[%emt 0:00:12]} Kb4 {[%emt 0:00:13]} 68. Kd3 {[%emt 0:01:06]} Kxa4 {[%emt 0:00:27]} 69. Bxe3 {[%emt 0:00:05] Strongly threatening Bd4.} Nxg3 {[%emt 0:00:14]} 70. Bf2 {[%emt 0:00:05]} Nf5 {[%emt 0:00:15]} 71. Ke4 {[%emt 0:00:07]} Ne7 {[%emt 0:00:46] [#]} 72. Bd4 $1 {[%emt 0:00:45]} f5+ {[%emt 0:00:25]} 73. Kf4 {[%emt 0:00:07]} Kb3 {[%emt 0:00:35]} 74. Bf6 {[%emt 0:00:13]} Nd5+ {[%emt 0:00:15]} 75. Kxf5 {[%emt 0:00:06]} Kc4 {[%emt 0:00:05]} 76. Be5 {[%emt 0:01:25]} (76. Kg5 $142 Kd3 77. Bb2 Ke3 78. f4 Kd3 79. f5 Ne7 80. f6 (80. Kxh5 Nxf5 81. Bh8 Nxh4 $11) 80... Nc6 81. f7) 76... Kd3 {[%emt 0:00:18]} 77. Kg5 {[%emt 0:02:26]} Ke3 {[%emt 0:00:12]} 78. f4 {[%emt 0:00:28]} Ke4 {[%emt 0:00:13]} 79. Kxh5 $2 {[%emt 0:00:34]} (79. Bd6 $18) 79... Kf5 $1 $11 {[%emt 0:00:23]} 80. Kh6 {[%emt 0:00:09] White threatens h5 and mate.} (80. Bb8 $5) 80... Kg4 $1 {[%emt 0:02:06]} 81. h5 {[%emt 0:00:07] Intending Kg6 and mate.} Ne7 $1 {[%emt 0:00:11]} 82. Bf6 {[%emt 0:02:54]} Nf5+ {[%emt 0:00:10]} 83. Kg6 {[%emt 0:00:03] White wants to mate with Bg5.} Kxf4 {[%emt 0:00:06]} 84. Bd8 $1 {[%emt 0:00:22]} Ke5 $1 {[%emt 0:00:49]} 85. Bg5 {[%emt 0:00:03]} Ke4 $2 {[%emt 0:01:32][%mdl 8192]} (85... Ke6 $11) 86. Kf6 {[%emt 0:01:27] Weighted Error Value: White=0.33/Black=0.47} 1-0

[Event "71st Greek Championship 2022"]
[Site "Athens"]
[Date "2022.12.07"]
[Round "5.5"]
[White "Alexiadis, Hristos"]
[Black "Markidis, Konstantinos"]
[Result "0-1"]
[ECO "D78"]
[WhiteElo "2342"]
[BlackElo "2290"]
[Annotator "TA"]
[PlyCount "78"]
[EventDate "2022.12.04"]
[EventType "tourn"]
[EventCountry "GRE"]
[SourceTitle "playchess.com"]
[Source "ChessBase"]
[SourceQuality "1"]
[TimeControl "40/5400+30:1800+30"]

{[%evp 18,78,17,7,23,-32,-39,-36,-42,-33,-27,-29,-18,-16,-21,-28,-17,-54,-53,-65,-29,-29,-27,-33,-29,-24,-30,-53,-49,-81,-82,-78,-73,-73,-73,-73,-74,-79,-57,-209,-191,-225,-218,-262,-264,-325,-310,-343,-334,-328,-332,-294,-216,-176,-199,-543,-466,-458,-427,-437,-379,-1392,-1302]} 1. Nf3 {[%emt 0:00:02]} d5 {[%emt 0:04:10]} 2. g3 {[%emt 0:03:41]} g6 {[%emt 0:01:18]} 3. Bg2 {[%emt 0:00:26]} Bg7 {[%emt 0:00:08]} 4. O-O {[%emt 0:00:06]} Nf6 {[%emt 0:01:56]} 5. d4 {[%emt 0:01:23]} O-O {[%emt 0:00:36]} 6. c4 {[%emt 0:00:08]} c6 {[%emt 0:00:58]} 7. Nbd2 {[%emt 0:04:30]} a5 {[%emt 0:08:01]} 8. b3 {[%emt 0:03:28]} Bf5 {[%emt 0:10:12]} 9. Nh4 {[%emt 0:16:46]} Be6 {[%emt 0:05:40]} 10. Bb2 {[%emt 0:06:46]} Na6 {[%emt 0:07:06][%cal Bb8a6,Ba6c5,Bc5e6][%mdl 32] D78: Fianchetto Grünfeld: 6 0-0 c6.} 11. e4 {[%emt 0:05:21]} (11. e3 $11) 11... Nxe4 {[%emt 0:02:26]} 12. Nxe4 {[%emt 0:01:08]} dxe4 {[%emt 0:00:08] Black is slightly better.} 13. Bxe4 {[%emt 0:00:26]} Bh3 {[%emt 0:01:57] Inhibits f4.} 14. Re1 {[%emt 0:01:23]} Nc5 {[%emt 0:01:26]} 15. Bg2 {[%emt 0:06:16]} Bxg2 {[%emt 0:02:39]} 16. Kxg2 {[%emt 0:00:10]} Ne6 {[%emt 0:03:09]} 17. Nf3 {[%emt 0:01:48]} c5 {[%emt 0:01:11][%cal Rc5d4]} 18. Re4 {[%emt 0:01:43][%cal Od4d5] [#]} Ra6 $146 {[%emt 0:05:41][%cal Ba8a6,Ba6d6,Bd6d2][%mdl 32]} (18... Qd6 {seems wilder.} 19. d5 Bxb2 20. Rb1 Bd4) ({Predecessor:} 18... b5 19. d5 Bxb2 20. Rb1 bxc4 21. bxc4 Rb8 22. dxe6 f5 23. Re2 Qxd1 24. Rxd1 Rb4 {1-0 (54) Amin,B (2700)-Harsha,B (2424) Dubai 2018}) 19. d5 $1 {[%emt 0:06:18]} Bxb2 {[%emt 0:01:01]} 20. Rb1 {[%emt 0:00:10]} Bg7 {[%emt 0:02:38]} 21. dxe6 {[%emt 0:00:12]} f5 $36 {[%emt 0:00:22][%mdl 2048] White is under pressure.} ({Resist} 21... Rxe6 22. Rxe6 fxe6 23. Qe2 $14) 22. Re2 {[%emt 0:07:44]} Rd6 {[%emt 0:01:19] Against Qd7} 23. Rd2 {[%emt 0:08:01]} Rxd2 {[%emt 0:01:17]} 24. Nxd2 {[%emt 0:00:55]} Qd3 {[%emt 0:09:43] White must now prevent ...Rd8.} 25. Nf3 {[%emt 0:04:02]} Rd8 {[%emt 0:05:50] Black is more active.} 26. Qxd3 {[%emt 0:01:41]} Rxd3 $17 {[%emt 0:00:07][%mdl 4096] Endgame KRB-KRN} 27. Re1 {[%emt 0:00:07]} Rd6 {[%emt 0:05:12]} 28. Ng5 $2 {[%emt 0:02:49] This move loses the game for White.} (28. h3 $15) 28... Rd2 $19 {[%emt 0:02:46][%cal Bd6d2,Bd2a2,Ba2b2,Bb2b3][%mdl 32]} 29. Nf3 {[%emt 0:01:07]} Rxa2 {[%emt 0:01:39]} 30. Rd1 {[%emt 0:02:27] [#] Strongly threatening Rd8+.} Bf6 $1 {[%emt 0:00:12]} 31. Rd7 {[%emt 0:07:52]} Rb2 {[%emt 0:00:22]} 32. Ne1 {[%emt 0:01:34]} Rxb3 {[%emt 0:00:36] ...a4 is the strong threat.} 33. Nd3 {[%emt 0:00:22]} b6 {[%emt 0:03:20][%cal Bb7b6,Bb6b5,Bb5c4][%mdl 32]} 34. Nf4 {[%emt 0:00:27]} b5 {[%emt 0:03:53]} 35. Nd5 {[%emt 0:01:17] Hoping for Nxf6+.} Kg7 {[%emt 0:00:13]} (35... bxc4 $2 36. Nxf6+ Kf8 37. Nxh7+ Ke8 38. Ra7 $18) 36. Nc7 $2 {[%emt 0:03:24]} (36. cxb5 {was the crucial defense.} Rxb5 37. Nxe7 Bxe7 38. Rxe7+ Kf6 39. Rxh7) 36... bxc4 {[%emt 0:00:29] And now ...c3 would win.} 37. Ne8+ {[%emt 0:00:06] [#]} Kf8 $1 {[%emt 0:00:22]} 38. Rd8 {[%emt 0:00:30]} Be5 {[%emt 0:00:18]} ({Don't go for} 38... Rd3 $2 39. Ra8 Bd4 40. Nd6+ Kg7 41. Nxc4 $19) 39. f4 $2 {[%emt 0:00:21]} (39. Nd6+ Kg7 40. Nxc4) 39... Rb8 {[%emt 0:00:15] Weighted Error Value: White=0.55/Black=0.12 (very precise)} 0-1